fUST/lending_fUST_20250301
["ID","MTS","AMOUNT","RATE_DAILY","PERIOD"]
[354914109,1740815447510,-1941.86,0.00032876,2]
[354914110,1740815447520,-1941.86,0.00032876,2]
[354914111,1740815447530,-522.76,0.00032876,2]
[354914112,1740815447540,-1941.86,0.00032876,2]
[354914113,1740815447550,-1941.86,0.00032876,2]
[354914114,1740815447560,-1941.86,0.00032876,2]
[354914115,1740815447570,-1941.86,0.00032876,2]
[354914116,1740815447579,-1941.86,0.00032876,2]
[354914117,1740815447589,-1941.86,0.00032876,2]
[354914118,1740815447598,-1941.99282048,0.00032876,2]
[354914119,1740815447609,-500.0,0.00032876,2]
[354914120,1740815447619,-500.0,0.00032876,2]
[354914121,1740815447628,-500.0,0.00032876,2]
[354914122,1740815447638,-500.0,0.00032876,2]
[354914123,1740815447648,-506.5828926,0.00032876,2]
[354914124,1740815447658,-500.0,0.00032876,2]
[354914125,1740815447668,-500.0,0.00032876,2]
[354914126,1740815447678,-526.65,0.00032876,2]
[354914127,1740815447688,-500.0,0.00032876,2]
[354914128,1740815447697,-526.1,0.00032876,2]
[354914129,1740815447707,-500.0,0.00032876,2]
[354914130,1740815447716,-500.0,0.00032876,2]
[354914131,1740815447726,-2054.32,0.00032876,2]
[354914132,1740815447736,-500.0,0.00032876,2]
[354914133,1740815447746,-503.18568257,0.00032876,2]
[354914134,1740815447756,-500.0,0.00032876,2]
[354914135,1740815447766,-1980.26,0.00032876,2]
[354914136,1740815447776,-248.05441895,0.00032876,2]
[354914137,1740815447786,-500.0,0.00032876,2]
[354914138,1740815447797,-2003.83,0.00032876,2]
[354914139,1740815447807,-728.09,0.00032876,2]
[354914140,1740815447817,-500.0,0.00032876,2]
[354914141,1740815447826,-2503.04,0.00032876,2]
[354914142,1740815447836,-1736.79,0.00032876,2]
[354914143,1740815447846,-500.0,0.00032876,2]
[354914144,1740815447855,-329.71427661,0.00032876,2]
[354914145,1740815447865,-500.0,0.00032876,2]
[354914146,1740815447875,-1167.51,0.00032876,2]
[354914147,1740815447884,-500.0,0.00032876,2]
[354914148,1740815447894,-500.0,0.00032876,2]
[354914149,1740815447904,-500.0,0.00032876,2]
[354914150,1740815447913,-691.22,0.00032876,2]
[354914151,1740815447923,-500.0,0.00032876,2]
[354914152,1740815447932,-500.0,0.00032876,2]
[354914153,1740815447942,-539.33,0.00032876,2]
[354914154,1740815447951,-866.32,0.00032876,2]
[354914155,1740815447961,-500.0,0.00032876,2]
[354914156,1740815447971,-500.0,0.00032876,2]
[354914157,1740815447980,-500.0,0.00032876,2]
[354914158,1740815447989,-500.0,0.00032876,2]
[354914159,1740815447999,-500.0,0.00032876,2]
[354914160,1740815448009,-1554.97,0.00032876,2]
[354914161,1740815448018,-500.0,0.00032876,2]
[354914162,1740815448028,-500.0,0.00032876,2]
[354914163,1740815448038,-500.0,0.00032876,2]
[354914164,1740815448048,-500.0,0.00032876,2]
[354914165,1740815448058,-500.0,0.00032876,2]
[354914166,1740815448068,-500.0,0.00032876,2]
[354914167,1740815448078,-500.0,0.00032876,2]
[354914168,1740815448089,-500.0,0.00032876,2]
[354914169,1740815448101,-500.0,0.00032876,2]
[354914170,1740815448112,-500.0,0.00032876,2]
[354914171,1740815448122,-500.0,0.00032876,2]
[354914172,1740815448132,-500.0,0.00032876,2]
[354914173,1740815448144,-500.0,0.00032876,2]
[354914174,1740815448154,-582.9,0.00032876,2]
[354914175,1740815448165,-500.0,0.00032876,2]
[354914176,1740815448175,-500.0,0.00032876,2]
[354914177,1740815448185,-540.03,0.00032876,2]
[354914178,1740815448196,-500.0,0.00032876,2]
[354914179,1740815448211,-500.0,0.00032876,2]
[354914180,1740815448222,-822.38,0.00032876,2]
[354914181,1740815448233,-3095.22,0.00032876,2]
[354914182,1740815448244,-500.0,0.00032876,2]
[354914183,1740815448255,-552.49454,0.00032876,2]
[354914184,1740815448266,-500.0,0.00032876,2]
[354914185,1740815448278,-500.0,0.00032876,2]
[354914186,1740815448289,-500.0,0.00032876,2]
[354914187,1740815448302,-500.0,0.00032876,2]
[354914188,1740815448312,-500.0,0.00032876,2]
[354914189,1740815448322,-500.0,0.00032876,2]
[354914190,1740815448332,-500.0,0.00032876,2]
[354914191,1740815448342,-500.0,0.00032876,2]
[354914192,1740815448352,-798.81,0.00032876,2]
[354914193,1740815448362,-604.77,0.00032876,2]
[354914194,1740815448373,-500.0,0.00032876,2]
[354914195,1740815448383,-3607.05,0.00032876,2]
[354914196,1740815448393,-500.0,0.00032876,2]
[354914197,1740815448403,-618.5,0.00032876,2]
[354914198,1740815448414,-618.5,0.00032876,2]
[354914199,1740815448425,-618.5,0.00032876,2]
[354914200,1740815448436,-1312.54,0.00032876,2]
[354914201,1740815448447,-618.5,0.00032876,2]
[354914202,1740815448457,-618.5,0.00032876,2]
[354914203,1740815448468,-618.5,0.00032876,2]
[354914204,1740815448478,-618.5,0.00032876,2]
[354914205,1740815448488,-618.5,0.00032876,2]
[354914206,1740815448499,-503.45,0.00032876,2]
[354914207,1740815448510,-618.5,0.00032876,2]
[354914208,1740815448522,-618.5,0.00032876,2]
[354914209,1740815448533,-618.5,0.00032876,2]
[354914210,1740815448544,-618.5,0.00032876,2]
[354914211,1740815448555,-618.5,0.00032876,2]
[354914212,1740815448565,-1898.36,0.00032876,2]
[354914213,1740815448580,-618.5,0.00032876,2]
[354914214,1740815448596,-618.5,0.00032876,2]
[354914215,1740815448607,-618.5,0.00032876,2]
[354914216,1740815448617,-618.5,0.00032876,2]
[354914217,1740815448627,-618.5,0.00032876,2]
[354914218,1740815448638,-618.5,0.00032876,2]
[354914219,1740815448648,-618.5,0.00032876,2]
[354914220,1740815448659,-932.6,0.00032876,2]
[354914221,1740815448669,-618.5,0.00032876,2]
[354914222,1740815448678,-500.0,0.00032876,2]
[354914223,1740815448689,-618.5,0.00032876,2]
[354914224,1740815448699,-500.0,0.00032876,2]
[354914225,1740815448711,-618.5,0.00032876,2]
[354914226,1740815448721,-618.7280259,0.00032876,2]
[354914227,1740815448734,-1000.0,0.00032876,2]
[354914228,1740815448746,-500.0,0.00032876,2]
[354914229,1740815448756,-500.0,0.00032876,2]
[354914230,1740815448767,-500.0,0.00032876,2]
[354914231,1740815448777,-500.0,0.00032876,2]
[354914232,1740815448787,-503.14924684,0.00032876,2]
[354914233,1740815448798,-513.9,0.00032876,2]
[354914234,1740815448808,-500.0,0.00032876,2]
[354914235,1740815448817,-500.0,0.00032876,2]
[354914236,1740815448827,-500.0,0.00032876,2]
[354914237,1740815448837,-313.07920656,0.00032876,2]
[354914238,1740815448846,-500.0,0.00032876,2]
[354914239,1740815448856,-500.0,0.00032876,2]
[354914240,1740815448866,-1322.7,0.00032876,2]
[354914241,1740815448875,-500.0,0.00032876,2]
[354914242,1740815448885,-500.0,0.00032876,2]
[354914243,1740815448895,-500.0,0.00032876,2]
[354914244,1740815448905,-2595.99,0.00032876,2]
[354914245,1740815448915,-500.0,0.00032876,2]
[354914246,1740815448925,-500.0,0.00032876,2]
[354914247,1740815448934,-500.0,0.00032876,2]
[354914248,1740815448944,-500.0,0.00032876,2]
[354914249,1740815448954,-500.0,0.00032876,2]
[354914250,1740815448963,-500.0,0.00032876,2]
[354914251,1740815448973,-656.65,0.00032876,2]
[354914252,1740815448982,-736.95,0.00032876,2]
[354914253,1740815448992,-500.0,0.00032876,2]
[354914254,1740815449001,-500.0,0.00032876,2]
[354914255,1740815449011,-3243.23,0.00032876,2]
[354914256,1740815449021,-500.0,0.00032876,2]
[354914257,1740815449032,-1908.98,0.00032876,2]
[354914258,1740815449044,-500.0,0.00032876,2]
[354914259,1740815449054,-500.0,0.00032876,2]
[354914260,1740815449064,-500.0,0.00032876,2]
[354914261,1740815449074,-1470.56,0.00032876,2]
[354914262,1740815449083,-500.0,0.00032876,2]
[354914263,1740815449093,-500.0,0.00032876,2]
[354914264,1740815449103,-340.03135605,0.00032876,2]
[354914265,1740815449112,-628.5,0.00032876,2]
[354914266,1740815449123,-518.40513653,0.00032876,2]
[354914267,1740815449133,-1186.15,0.00032876,2]
[354914268,1740815449144,-1312.34,0.00032876,2]
[354914269,1740815449154,-2004.58,0.00032876,2]
[354914270,1740815449164,-500.0,0.00032876,2]
[354914271,1740815449174,-1154.89,0.00032876,2]
[354914272,1740815449184,-261249.1,0.00032876,2]
[354914273,1740815449196,-500.0,0.00032876,2]
[354914274,1740815449211,-500.0,0.00032876,2]
[354914275,1740815449221,-500.0,0.00032876,2]
[354914276,1740815449231,-512.33,0.00032876,2]
[354914277,1740815449243,-500.0,0.00032876,2]
[354914278,1740815449252,-500.0,0.00032876,2]
[354914279,1740815449262,-500.0,0.00032876,2]
[354914280,1740815449272,-500.0,0.00032876,2]
[354914281,1740815449283,-500.0,0.00032876,2]
[354914282,1740815449295,-500.0,0.00032876,2]
[354914283,1740815449304,-500.0,0.00032876,2]
[354914284,1740815449313,-500.0,0.00032876,2]
[354914285,1740815449323,-500.0,0.00032876,2]
[354914286,1740815449334,-500.0,0.00032876,2]
[354914287,1740815449344,-500.0,0.00032876,2]
[354914288,1740815449354,-500.0,0.00032876,2]
[354914289,1740815449364,-504.68975139,0.00032876,2]
[354914290,1740815449373,-500.0,0.00032876,2]
[354914291,1740815449383,-500.0,0.00032876,2]
[354914292,1740815449392,-500.0,0.00032876,2]
[354914293,1740815449402,-663.23,0.00032876,2]
[354914294,1740815449411,-500.0,0.00032876,2]
[354914295,1740815449422,-500.0,0.00032876,2]
[354914296,1740815449432,-1090.36,0.00032876,2]
[354914297,1740815449442,-500.0,0.00032876,2]
[354914298,1740815449453,-500.0,0.00032876,2]
[354914299,1740815449463,-500.0,0.00032876,2]
[354914300,1740815449473,-4845.54,0.00032876,2]
[354914301,1740815449483,-500.0,0.00032876,2]
[354914302,1740815449493,-500.0,0.00032876,2]
[354914303,1740815449503,-500.0,0.00032876,2]
[354914304,1740815449512,-500.0,0.00032876,2]
[354914305,1740815449522,-500.0,0.00032876,2]
[354914306,1740815449533,-2435.05,0.00032876,2]
[354914307,1740815449545,-500.0,0.00032876,2]
[354914308,1740815449555,-1832.13,0.00032876,2]
[354914309,1740815449565,-1832.13,0.00032876,2]
[354914310,1740815449575,-500.0,0.00032876,2]
[354914311,1740815449586,-1832.13,0.00032876,2]
[354914312,1740815449596,-500.0,0.00032876,2]
[354914313,1740815449606,-1832.13,0.00032876,2]
[354914314,1740815449616,-1832.13,0.00032876,2]
[354914315,1740815449627,-1832.13,0.00032876,2]
[354914316,1740815449638,-1832.13,0.00032876,2]
[354914317,1740815449648,-1516.27,0.00032876,2]
[354914318,1740815449659,-1832.13,0.00032876,2]
[354914319,1740815449669,-1832.13,0.00032876,2]
[354914320,1740815449679,-500.0,0.00032876,2]
[354914321,1740815449689,-1832.13,0.00032876,2]
[354914322,1740815449699,-1229.31,0.00032876,2]
[354914323,1740815449710,-1832.13,0.00032876,2]
[354914324,1740815449719,-500.0,0.00032876,2]
[354914325,1740815449729,-1832.13,0.00032876,2]
[354914326,1740815449739,-1832.13,0.00032876,2]
[354914327,1740815449750,-1832.13,0.00032876,2]
[354914328,1740815449760,-1832.13,0.00032876,2]
[354914329,1740815449769,-587.52,0.00032876,2]
[354914330,1740815449779,-1832.13,0.00032876,2]
[354914331,1740815449789,-1832.13,0.00032876,2]
[354914332,1740815449799,-558.19,0.00032876,2]
[354914333,1740815449809,-1832.13,0.00032876,2]
[354914334,1740815449820,-14249.77,0.00032876,2]
[354914335,1740815449831,-1832.13,0.00032876,2]
[354914336,1740815449840,-511.67,0.00032876,2]
[354914337,1740815449849,-1832.13,0.00032876,2]
[354914338,1740815449859,-1832.13,0.00032876,2]
[354914339,1740815449868,-1832.13,0.00032876,2]
[354914340,1740815449878,-1832.13,0.00032876,2]
[354914341,1740815449888,-500.0,0.00032876,2]
[354914342,1740815449898,-2604.35,0.00032876,2]
[354914343,1740815449908,-1832.36410916,0.00032876,2]
[354914344,1740815449918,-500.0,0.00032876,2]
[354914345,1740815449928,-200.0,0.00032876,2]
[354914346,1740815449938,-500.0,0.00032876,2]
[354914347,1740815449948,-500.0,0.00032876,2]
[354914348,1740815449958,-460.22798626,0.00032876,2]
[354914349,1740815449968,-536.47727255,0.00032876,2]
[354914350,1740815449978,-1885.94,0.00032876,2]
[354914351,1740815449988,-500.0,0.00032876,2]
[354914352,1740815449998,-724.2,0.00032876,2]
[354914353,1740815450008,-500.0,0.00032876,2]
[354914354,1740815450018,-500.0,0.00032876,2]
[354914355,1740815450028,-500.0,0.00032876,2]
[354914356,1740815450038,-500.0,0.00032876,2]
[354914357,1740815450048,-500.0,0.00032876,2]
[354914358,1740815450058,-726.5,0.00032876,2]
[354914359,1740815450069,-890.0,0.00032876,2]
[354914360,1740815450079,-500.0,0.00032876,2]
[354914361,1740815450089,-500.0,0.00032876,2]
[354914362,1740815450099,-500.0,0.00032876,2]
[354914363,1740815450109,-500.0,0.00032876,2]
[354914364,1740815450119,-500.0,0.00032876,2]
[354914365,1740815450129,-1224.42,0.00032876,5]
[354914366,1740815450138,-3474.03,0.00032876,2]
[354914367,1740815450148,-500.0,0.00032876,2]
[354914368,1740815450158,-502.64324863,0.00032876,2]
[354914369,1740815450168,-500.0,0.00032876,2]
[354914370,1740815450178,-2348.01,0.00032876,2]
[354914371,1740815450188,-3298.47,0.00032876,2]
[354914372,1740815450199,-585.94,0.00032876,2]
[354914373,1740815450211,-500.0,0.00032876,2]
[354914374,1740815450221,-500.0,0.00032876,2]
[354914375,1740815450231,-582.33560244,0.00032876,2]
[354914376,1740815450242,-1477.3,0.00032876,2]
[354914377,1740815450252,-671.97,0.00032876,2]
[354914378,1740815450262,-500.0,0.00032876,2]
[354914379,1740815450273,-1119.47,0.00032876,2]
[354914380,1740815450285,-500.0,0.00032876,2]
[354914381,1740815450296,-6926.06,0.00032876,2]
[354914382,1740815450306,-1543.42,0.00032876,2]
[354914383,1740815450316,-500.0,0.00032876,2]
[354914384,1740815450326,-633.29,0.00032876,2]
[354914385,1740815450336,-699.24,0.00032876,2]
[354914386,1740815450346,-502.98892794,0.00032876,2]
[354914387,1740815450356,-500.0,0.00032876,2]
[354914388,1740815450366,-500.0,0.00032876,2]
[354914389,1740815450376,-500.0,0.00032876,2]
[354914390,1740815450386,-500.0,0.00032876,2]
[354914391,1740815450396,-1039.78,0.00032876,2]
[354914392,1740815450406,-500.0,0.00032876,2]
[354914393,1740815450416,-503.37462656,0.00032876,2]
[354914394,1740815450425,-500.0,0.00032876,2]
[354914395,1740815450435,-500.0,0.00032876,2]
[354914396,1740815450445,-500.0,0.00032876,2]
[354914397,1740815450455,-500.0,0.00032876,2]
[354914398,1740815450465,-500.0,0.00032876,2]
[354914399,1740815450475,-500.0,0.00032876,2]
[354914400,1740815450485,-500.0,0.00032876,2]
[354914401,1740815450495,-155.1862099,0.00032876,2]
[354914402,1740815450504,-500.0,0.00032876,2]
[354914403,1740815450515,-500.0,0.00032876,2]
[354914404,1740815450525,-500.0,0.00032876,2]
[354914405,1740815450536,-600.97,0.00032876,2]
[354914406,1740815450548,-1742.64,0.00032876,2]
[354914407,1740815450558,-500.0,0.00032876,2]
[354914408,1740815450568,-1170.43,0.00032876,2]
[354914409,1740815450579,-500.0,0.00032876,2]
[354914410,1740815450589,-500.0,0.00032876,2]
[354914411,1740815450599,-500.0,0.00032876,2]
[354914412,1740815450610,-2046.3,0.00032876,2]
[354914413,1740815450620,-500.0,0.00032876,2]
[354914414,1740815450630,-500.0,0.00032876,2]
[354914415,1740815450640,-770.7,0.00032876,2]
[354914416,1740815450649,-300.0,0.00032876,120]
[354914417,1740815450659,-3910.34,0.00032876,2]
[354914418,1740815450669,-500.0,0.00032876,2]
[354914419,1740815450679,-500.0,0.00032876,2]
[354914420,1740815450690,-500.0,0.00032876,2]
[354914421,1740815450699,-603.91,0.00032876,2]
[354914422,1740815450709,-952.03,0.00032876,2]
[354914423,1740815450719,-500.0,0.00032876,2]
[354914424,1740815450729,-1102.29,0.00032876,2]
[354914425,1740815450739,-500.0,0.00032876,2]
[354914426,1740815450750,-500.0,0.00032876,2]
[354914427,1740815450761,-500.0,0.00032876,2]
[354914428,1740815450771,-1313.88,0.00032876,2]
[354914429,1740815450783,-500.0,0.00032876,2]
[354914430,1740815450794,-2162.46,0.00032876,2]
[354914431,1740815450809,-501.9341304,0.00032876,2]
[354914432,1740815450821,-724.82,0.00032876,2]
[354914433,1740815450832,-500.0,0.00032876,2]
[354914434,1740815450843,-500.0,0.00032876,2]
[354914435,1740815450854,-500.0,0.00032876,2]
[354914436,1740815450865,-951.94,0.00032876,2]
[354914437,1740815450875,-500.0,0.00032876,2]
[354914438,1740815450886,-500.0,0.00032876,2]
[354914439,1740815450896,-671.76,0.00032876,2]
[354914440,1740815450907,-500.0,0.00032876,2]
[354914441,1740815450918,-500.0,0.00032876,2]
[354914442,1740815450928,-500.0,0.00032876,2]
[354914443,1740815450939,-500.0,0.00032876,2]
[354914444,1740815450949,-500.0,0.00032876,2]
[354914445,1740815450959,-48413.75,0.00032876,2]
[354914446,1740815450969,-500.0,0.00032876,2]
[354914447,1740815450980,-500.0,0.00032876,2]
[354914448,1740815450990,-500.0,0.00032876,2]
[354914449,1740815451000,-500.0,0.00032876,2]
[354914450,1740815451010,-500.0,0.00032876,2]
[354914451,1740815451020,-541.06,0.00032876,2]
[354914452,1740815451031,-522.4143186,0.00032876,2]
[354914453,1740815451041,-816.92,0.00032876,2]
[354914454,1740815451056,-1559.6,0.00032876,2]
[354914455,1740815451066,-3048.67,0.00032876,2]
[354914456,1740815451076,-1057.53,0.00032876,2]
[354914457,1740815451086,-755.11,0.00032876,2]
[354914458,1740815451096,-500.0,0.00032876,2]
[354914459,1740815451106,-500.0,0.00032876,2]
[354914460,1740815451117,-500.0,0.00032876,2]
[354914461,1740815451127,-500.0,0.00032876,2]
[354914462,1740815451137,-500.0,0.00032876,2]
[354914463,1740815451147,-500.0,0.00032876,2]
[354914464,1740815451157,-500.0,0.00032876,2]
[354914465,1740815451167,-653.6,0.00032876,2]
[354914466,1740815451178,-500.0,0.00032876,2]
[354914467,1740815451188,-500.0,0.00032876,2]
[354914468,1740815451198,-500.0,0.00032876,2]
[354914469,1740815451213,-504.51657921,0.00032876,2]
[354914470,1740815451223,-1631.72,0.00032876,2]
[354914471,1740815451233,-500.0,0.00032876,2]
[354914472,1740815451245,-500.0,0.00032876,2]
[354914473,1740815451255,-2584.73,0.00032876,2]
[354914474,1740815451265,-511.6614966,0.00032876,2]
[354914475,1740815451276,-500.0,0.00032876,2]
[354914476,1740815451287,-500.0,0.00032876,2]
[354914477,1740815451300,-509.34185723,0.00032876,2]
[354914478,1740815451310,-160.97737788,0.00032876,2]
[354914479,1740815451319,-500.0,0.00032876,2]
[354914480,1740815451329,-507.06447468,0.00032876,2]
[354914481,1740815451338,-500.0,0.00032876,2]
[354914482,1740815451348,-500.0,0.00032876,2]
[354914483,1740815451358,-500.0,0.00032876,2]
[354914484,1740815451368,-171.00372377,0.00032876,2]
[354914485,1740815451379,-500.0,0.00032876,2]
[354914486,1740815451389,-500.0,0.00032876,2]
[354914487,1740815451399,-500.0,0.00032876,2]
[354914488,1740815451409,-94844.89332819,0.00032876,2]
[354914489,1740815451420,-500.0,0.00032876,120]
[354914490,1740815451430,-1000.0,0.00032877,2]
[354914491,1740815451441,-6280.91,0.000329,30]
[354914492,1740815451451,-2831.25,0.000329,30]
[354914493,1740815451462,-110773.13,0.000329,30]
[354914494,1740815451472,-1120.56,0.000329,30]
[354914495,1740815451482,-1000.0,0.00032911,2]
[354914496,1740815451491,-1000.0,0.00033,120]
[354914497,1740815451501,-162.85000331,0.0003305,2]
[354914498,1740815451511,-151.0,0.000331,18]
[354914499,1740815451522,-500.0,0.00033149,2]
[354914500,1740815451532,-335.06200885,0.00033149,2]
[354914501,1740815451542,-509.66,0.00033149,2]
[354914502,1740815451554,-509.66,0.00033149,2]
[354914503,1740815451564,-509.66,0.00033149,2]
[354914504,1740815451574,-509.66,0.00033149,2]
[354914505,1740815451584,-509.66,0.00033149,2]
[354914506,1740815451594,-500.0,0.0003315,2]
[354914507,1740815451604,-500.0,0.0003315,2]
[354914508,1740815451614,-843.38,0.0003315,2]
[354914509,1740815451625,-1138.34,0.0003315,2]
[354914510,1740815451635,-500.0,0.0003315,2]
[354914511,1740815451645,-500.0,0.0003315,2]
[354914512,1740815451654,-500.0,0.0003315,2]
[354914513,1740815451664,-282.85581746,0.0003315,2]
[354914514,1740815451674,-500.0,0.0003315,2]
[354914515,1740815451683,-500.0,0.0003315,2]
[354914516,1740815451693,-454.30551841,0.0003315,2]
[354914517,1740815451703,-500.0,0.0003315,2]
[354914518,1740815451713,-500.0,0.0003315,2]
[354914519,1740815451723,-551.02,0.0003315,2]
[354914520,1740815451733,-500.0,0.0003315,2]
[354914521,1740815451743,-613.03,0.0003315,2]
[354914522,1740815451753,-500.0,0.0003315,2]
[354914523,1740815451763,-500.0,0.0003315,2]
[354914524,1740815451772,-500.0,0.0003315,2]
[354914525,1740815451783,-881.21,0.0003315,2]
[354914526,1740815451873,-500.0,0.0003315,2]
[354914527,1740815451884,-520.16438122,0.0003315,2]
[354914528,1740815451894,-1952.71,0.0003315,2]
[354914529,1740815451904,-500.0,0.0003315,2]
[354914530,1740815451914,-644.51,0.0003315,2]
[354914531,1740815451925,-500.0,0.0003315,2]
[354914532,1740815451935,-500.0,0.0003315,2]
[354914533,1740815451945,-500.0,0.0003315,2]
[354914534,1740815451956,-500.0,0.0003315,2]
[354914535,1740815451966,-500.0,0.0003315,2]
[354914536,1740815451975,-227.07979878,0.0003315,2]
[354914537,1740815451985,-500.0,0.0003315,2]
[354914538,1740815451995,-612.88,0.0003315,2]
[354914539,1740815452006,-500.0,0.0003315,2]
[354914540,1740815452016,-700.73,0.0003315,2]
[354914541,1740815452026,-500.0,0.0003315,2]
[354914542,1740815452037,-500.0,0.0003315,2]
[354914543,1740815452047,-563.90384723,0.0003315,2]
[354914544,1740815452057,-539.51551052,0.0003315,2]
[354914545,1740815452067,-500.0,0.0003315,2]
[354914546,1740815452077,-500.0,0.0003315,2]
[354914547,1740815452086,-500.0,0.0003315,2]
[354914548,1740815452097,-500.0,0.0003315,2]
[354914549,1740815452107,-500.0,0.0003315,2]
[354914550,1740815452117,-500.0,0.0003315,2]
[354914551,1740815452127,-500.0,0.0003315,2]
[354914552,1740815452137,-500.0,0.0003315,2]
[354914553,1740815452147,-500.0,0.0003315,2]
[354914554,1740815452158,-500.0,0.0003315,2]
[354914555,1740815452168,-500.0,0.0003315,2]
[354914556,1740815452179,-500.0,0.0003315,2]
[354914557,1740815452189,-752.38,0.0003315,2]
[354914558,1740815452201,-500.0,0.0003315,2]
[354914559,1740815452214,-1157.26,0.0003315,2]
[354914560,1740815452224,-420.67269332,0.0003315,2]
[354914561,1740815452234,-500.0,0.0003315,2]
[354914562,1740815452245,-500.0,0.0003315,2]
[354914563,1740815452256,-939.0,0.0003315,2]
[354914564,1740815452266,-500.0,0.0003315,2]
[354914565,1740815452276,-500.0,0.0003315,2]
[354914566,1740815452289,-686.39,0.0003315,2]
[354914567,1740815452300,-1493.85,0.0003315,2]
[354914568,1740815452310,-500.0,0.0003315,2]
[354914569,1740815452320,-500.0,0.0003315,2]
[354914570,1740815452330,-1172.79,0.0003315,2]
[354914571,1740815452341,-500.0,0.0003315,2]
[354914572,1740815452351,-690.59,0.0003315,2]
[354914573,1740815452360,-571.44,0.0003315,2]
[354914574,1740815452371,-500.0,0.0003315,2]
[354914575,1740815452380,-500.0,0.0003315,2]
[354914576,1740815452391,-257.09457532,0.0003315,2]
[354914577,1740815452401,-500.0,0.0003315,2]
[354914578,1740815452411,-500.0,0.0003315,2]
[354914579,1740815452421,-500.0,0.0003315,2]
[354914580,1740815452431,-907.18,0.0003315,2]
[354914581,1740815452441,-500.0,0.0003315,2]
[354914582,1740815452451,-500.0,0.0003315,2]
[354914583,1740815452461,-500.0,0.0003315,2]
[354914584,1740815452471,-500.0,0.0003315,2]
[354914585,1740815452481,-500.0,0.0003315,2]
[354914586,1740815452491,-500.0,0.0003315,2]
[354914587,1740815452502,-814.74,0.0003315,2]
[354914588,1740815452512,-500.0,0.0003315,2]
[354914589,1740815452522,-592.94723038,0.0003315,2]
[354914590,1740815452533,-500.0,0.0003315,2]
[354914591,1740815452543,-500.0,0.0003315,2]
[354914592,1740815452555,-500.0,0.0003315,2]
[354914593,1740815452565,-980.27,0.0003315,2]
[354914594,1740815452575,-1212.48,0.0003315,2]
[354914595,1740815452586,-500.0,0.0003315,2]
[354914596,1740815452596,-500.0,0.0003315,2]
[354914597,1740815452607,-500.0,0.0003315,2]
[354914598,1740815452618,-500.0,0.0003315,2]
[354914599,1740815452628,-500.0,0.0003315,2]
[354914600,1740815452638,-500.0,0.0003315,2]
[354914601,1740815452648,-500.0,0.0003315,2]
[354914602,1740815452658,-500.0,0.0003315,2]
[354914603,1740815452669,-826.0,0.0003315,2]
[354914604,1740815452679,-748.99,0.0003315,2]
[354914605,1740815452690,-633.13,0.0003315,2]
[354914606,1740815452700,-500.0,0.0003315,2]
[354914607,1740815452710,-575.27,0.0003315,2]
[354914608,1740815452720,-500.0,0.0003315,2]